Cogmind - Beta 14 @@@ ROGUE MODE // 2024.12.30 @ 22:16:25 Player: Doxiho Result: Destroyed by TC-4C7(z) with Zionite Laser-S Performance ------------- Evolutions (1) 500 Regions Visited (5) 1000 Robots Destroyed (32) 160 Value Destroyed (783) 783 Prototype IDs (0) 0 Alien Tech Used (0) 0 Bonus (600) 600 TOTAL SCORE: 3043 Bonus ------- Met Imprinter 300 Was Imprinted 300 Cogmind --------- Core Integrity 0/400 Matter 215/300 Energy 87/100 System Corruption 0% Temperature Cool (19) Movement Hovering (60) Location -7/Deep Caves Parts ------- > --- POWER (1) -------- (None) > --- PROPULSION (2) --- Hover Unit > --- UTILITY (4) ------ Small Storage Unit Hacking Suite System Shield > --- WEAPON (2) ------- (None) > --- INVENTORY (8) ---- Light Ion Engine Hacking Drone Bay Makeshift Laser Heavy Assault Rifle Datajack Mining Laser Makeshift Spear Self-destruct Interrupter (50) Peak State ------------ > --- POWER ------------ (None) > --- PROPULSION ------- Flight Unit Flight Unit > --- UTILITY ---------- Small Storage Unit Structural Scanner Hacking Suite System Shield > --- WEAPON ----------- Backup Laser III Makeshift Laser > --- INVENTORY -------- Light Ion Engine Hacking Drone Bay Heavy Assault Rifle Grenade Launcher Mining Laser Makeshift Spear Self-destruct Interrupter [Rating: 19] Favorites ----------- Power Light Ion Engine Engine Light Ion Engine Propulsion Flight Unit Leg Aluminum Leg Wheel Wheel Hover Unit Hover Unit Flight Unit Flight Unit Utility Structural Scanner Device Structural Scanner Storage Small Storage Unit Processor Signal Interpreter Hackware Hacking Suite Protection Light Armor Plating Weapon Small Laser Energy Gun Small Laser Ballistic Gun Light Assault Rifle Launcher Grenade Launcher Special Weapon Mining Laser Slashing Weapon Katana Build | -11 -10 -9 -9 -7 -7 ------- Run | Yrd Mat Mat Min Zio Dee Slots Evolved 2 | . . 2 . . . Power . | . . . . . . Propulsion . | . . . . . . Utility 2 | . . 2 . . . Weapon . | . . . . . . Parts Attached 55 | 5 22 9 9 7 3 Power 10 | 1 5 1 2 1 . Engine 10 | 1 5 1 2 1 . Core . | . . . . . . Reactor . | . . . . . . Propulsion 16 | 2 8 2 2 . 2 Treads . | . . . . . . Leg 7 | 2 5 . . . . Wheel 4 | . 2 2 . . . Hover 2 | . . . . . 2 Flight 3 | . 1 . 2 . . Utility 13 | . 4 4 4 1 . Device 4 | . 1 1 2 . . Storage 3 | . 2 . 1 . . Processor 1 | . 1 . . . . Hackware 3 | . . 1 1 1 . Protection 2 | . . 2 . . . Artifact . | . . . . . . Weapon 16 | 2 5 2 1 5 1 Energy Gun 3 | . 2 . . 1 . Energy Cannon . | . . . . . . Ballistic Gun 6 | 2 1 1 . 2 . Ballistic Cannon . | . . . . . . Launcher 5 | . 2 1 1 . 1 Special Weapon 1 | . . . . 1 . Impact Weapon . | . . . . . . Slashing Weapon 1 | . . . . 1 . Piercing Weapon . | . . . . . . Special Melee Weapon . | . . . . . . Unidentified Prototypes . | . . . . . . Parts Lost 17 | . 7 6 . . 4 Power 3 | . 2 1 . . . Propulsion 7 | . 2 2 . . 3 Utility 2 | . . 2 . . . Weapon 5 | . 3 1 . . 1 Highest Loss Streak 4 | . 3 4 . . 3 To Critical Strikes . | . . . . . . Average Slot Usage (%) 74 | . 75 87 60 72 66 Engine 3 | . 6 4 . . . Leg 9 | . 24 10 . . . Wheel 2 | . 2 7 1 . . Flight 10 | . . . 20 22 14 Device 11 | . 8 20 11 11 8 Storage 9 | . 6 11 11 11 11 Hackware 8 | . . 1 9 18 22 Protection 2 | . . 10 1 . . Energy Gun 7 | . 4 12 . 10 8 Ballistic Gun 4 | . 11 4 . . . Launcher 3 | . 7 4 3 . . Peak Build Rating 19 | 5 7 12 9 19 15 Average Rating 9 | 3 5 9 7 13 13 On Entrance 7 | . 5 6 9 8 15 Naked Turns . | . . . . . . Heaviest Build 24 | 6 20 24 20 10 8 Greatest Support 26 | 20 20 26 26 8 12 Greatest Overweight (x) 6 | . 3 6 1 1 2 Average Overweight (x) . | . . . . . . Largest Inventory Capacity 10 | 5 10 10 10 8 8 Average Capacity 8 | 5 7 10 8 8 8 Most Carried 10 | 5 10 10 10 8 8 Average Carried 6 | 3 6 7 7 7 7 Final Capacity 10 | 5 10 10 8 8 8 Final Carried 8 | 5 8 8 8 8 8 Class Distribution -------------------- 61% | Mutant 25% | Hacker-Mutant 13% | Scavenger-Mutant Dominant Class ---------------- Mutant | -10/Materials Mutant | -9/Materials Mutant | -9/Mines Hacker-Mutant | -7/Zion Hacker-Mutant | -7/Deep Caves Resources | -11 -10 -9 -9 -7 -7 ----------- Run | Yrd Mat Mat Min Zio Dee Matter Collected 969 | 254 339 200 88 67 21 Remotely . | . . . . . . Salvage Created 781 | 33 395 314 39 . . Parts 51 | 2 22 19 8 . . Haulers Intercepted . | . . . . . . Recyclers Shooed . | . . . . . . Parts Field Recycled . | . . . . . . Retrieved Matter . | . . . . . . Parts Self-Destructed . | . . . . . . Prevented . | . . . . . . Kills | -11 -10 -9 -9 -7 -7 ------- Run | Yrd Mat Mat Min Zio Dee Combat Hostiles Destroyed 26 | 1 11 6 8 . . Guns 12 | 1 7 4 . . . AOE 14 | . 4 2 8 . . Classes Destroyed 7 | 1 3 3 . . . Worker 1 | . . 1 . . . Recycler 2 | . 1 1 . . . Watcher 3 | . 2 1 . . . Swarmer 11 | . 3 . 8 . . Grunt 11 | 1 8 2 . . . Duelist 1 | . . 1 . . . Sentry 3 | . . 3 . . . Best Kill Streak 4 | 1 4 2 4 . . Combat Bots Only 4 | 1 3 2 4 . . Max Kills in Single Turn 3 | 1 2 2 3 . . Gunslinging . | . . . . . . Exploded 3 | . 2 1 3 . . Melee . | . . . . . . Uniques/NPCs Destroyed . | . . . . . . Combat | -11 -10 -9 -9 -7 -7 -------- Run | Yrd Mat Mat Min Zio Dee Hostile Shots Fired 188 | 1 87 57 10 . 33 Missed 61 | . 29 15 5 . 12 Damage Taken 2199 | 11 887 631 57 . 613 Core 596 | . 177 120 10 . 289 Absorbed by Shields . | . . . . . . Core Remaining (%) 64 | 100 29 . . . . Volleys Fired 101 | 1 62 28 7 . 3 Largest 2 | 2 2 2 2 . 1 Hottest 80 | 40 80 80 53 . 40 Shots Fired 176 | 2 110 52 9 . 3 Gun 155 | 2 101 47 2 . 3 Cannon . | . . . . . . Launcher 21 | . 9 5 7 . . Special . | . . . . . . Kinetic 102 | 2 87 11 2 . . Thermal 53 | . 14 36 . . 3 Explosive 21 | . 9 5 7 . . Electromagnetic . | . . . . . . Robot Hit Streak 10 | 2 10 10 1 . 2 Robot Miss Streak 7 | . 7 2 2 . 2 Penetration Max . | . . . . . . Secondary Targets 1 | . 1 . . . . Max Gunslinging Chain 1 | . 1 . . . . Shots Hit Robots 88 | 2 46 37 1 . 2 Core Hits 58 | 2 31 15 9 . 1 Critical Kills . | . . . . . . Critical Parts Destroyed . | . . . . . . Critical Strikes . | . . . . . . Melee Attacks . | . . . . . . Impact . | . . . . . . Slashing . | . . . . . . Piercing . | . . . . . . Sneak Attacks . | . . . . . . Combat Hostiles . | . . . . . . Follow-up Attacks . | . . . . . . Damage Inflicted 2054 | 19 985 657 368 . 25 Guns 894 | 19 440 394 16 . 25 Cannons . | . . . . . . Explosions 1155 | . 540 263 352 . . Melee . | . . . . . . Ramming 5 | . 5 . . . . Kinetic 462 | 19 354 73 16 . . Thermal 645 | . 299 321 . . 25 Explosive 942 | . 327 263 352 . . Electromagnetic . | . . . . . . Impact . | . . . . . . Slashing . | . . . . . . Piercing . | . . . . . . Highest Corruption . | . . . . . . Average Corruption . | . . . . . . Corruption Purged . | . . . . . . Corruption Blocked . | . . . . . . Overload Shots . | . . . . . . Overflow Damage 109 | . 85 24 . . . Projectiles . | . . . . . . Explosions 109 | . 85 24 . . . Melee . | . . . . . . Knockbacks . | . . . . . . Impact . | . . . . . . Kinetic . | . . . . . . Secondary . | . . . . . . Self-Inflicted Damage 298 | . 217 65 16 . . Shots 8 | . 5 2 1 . . Rammed . | . . . . . . Targets Rammed 1 | . 1 . . . . Kicked 1 | . 1 . . . . Crushed . | . . . . . . Highest Temperature 210 | 6 51 210 . . 13 Average Temperature 58 | 6 11 101 . . 7 Received Heat Transfer 717 | 6 306 216 . . 189 Siege Activations . | . . . . . . Robots Corrupted . | . . . . . . Combat Hostiles . | . . . . . . Parts Fried . | . . . . . . Impact Corruptions . | . . . . . . Robots Melted . | . . . . . . Combat Hostiles . | . . . . . . Parts Melted 2 | . . 2 . . . Heat Transferred 1149 | . 350 725 . . 74 Parts Sabotaged . | . . . . . . Parts Stolen . | . . . . . . Parts Stripped . | . . . . . . Power Chain Reactions . | . . . . . . Alert | -11 -10 -9 -9 -7 -7 ------- Run | Yrd Mat Mat Min Zio Dee Peak Influence 307 | 20 293 241 307 . . Initial 52 | . 13 52 34 . . Average 164 | 6 186 112 230 . . Maximum Alert Level 1 | . 1 1 1 . . Low Security (%) 57 | 100 41 95 33 . . Level 1 42 | . 58 4 66 . . Level 2 . | . . . . . . Level 3 . | . . . . . . Level 4 . | . . . . . . Level 5 . | . . . . . . High Security . | . . . . . . Max Security . | . . . . . . Squads Dispatched 5 | . 3 2 . . . Investigation 1 | . 1 . . . . Extermination . | . . . . . . Reinforcement 4 | . 2 2 . . . Assault . | . . . . . . Garrison . | . . . . . . Intercept . | . . . . . . Searches Triggered . | . . . . . . Construction Impeded . | . . . . . . Haulers Reinforced . | . . . . . . Active Scanning Responses . | . . . . . . Cargo Convoy Interrupts . | . . . . . . Stealth | -11 -10 -9 -9 -7 -7 --------- Run | Yrd Mat Mat Min Zio Dee Distress Signals 5 | . 5 . . . . Communications Jammed . | . . . . . . Distress Signals . | . . . . . . Times Spotted 52 | 1 25 11 7 . 8 Peak Tracking Total 7 | . 6 6 4 . 7 Tactical Retreats 4 | . 3 . 1 . . Traps | -11 -10 -9 -9 -7 -7 ------- Run | Yrd Mat Mat Min Zio Dee Traps Triggered 1 | . 1 . . . . Indirectly . | . . . . . . Trap Hack Attempts . | . . . . . . Triggered . | . . . . . . Disarmed . | . . . . . . Reprogrammed . | . . . . . . Reused . | . . . . . . Traps Extracted . | . . . . . . Installed . | . . . . . . Triggered . | . . . . . . Machines | -11 -10 -9 -9 -7 -7 ---------- Run | Yrd Mat Mat Min Zio Dee Machines Disabled 3 | . 3 . . . . Max in Single Turn 2 | . 2 . . . . Machines Repaired . | . . . . . . Machines Dismantled . | . . . . . . Machines Sabotaged . | . . . . . . Overloaded Fab Kills . | . . . . . . Hacking | -11 -10 -9 -9 -7 -7 --------- Run | Yrd Mat Mat Min Zio Dee Machines Accessed 1 | . . 1 . . . Terminals 1 | . . 1 . . . Fabricators . | . . . . . . Repair Stations . | . . . . . . Recycling Units . | . . . . . . Scanalyzers . | . . . . . . Garrison Access . | . . . . . . Total Hacks 2 | . . 2 . . . Successful 1 | . . 1 . . . Failed 1 | . . 1 . . . Catastrophic . | . . . . . . Database Lockouts . | . . . . . . Manual 20 | . . . . 20 . Terminals 2 | . . 2 . . . Fabricators . | . . . . . . Repair Stations . | . . . . . . Recycling Units . | . . . . . . Scanalyzers . | . . . . . . Garrison Access . | . . . . . . Terminal Hacks 1 | . . 1 . . . Branch Access Points 1 | . . 1 . . . Fabricator Hacks . | . . . . . . Repair Station Hacks . | . . . . . . Recycling Unit Hacks . | . . . . . . Scanalyzer . | . . . . . . Garrison Access Hacks . | . . . . . . Unauthorized Hacks . | . . . . . . Terminals . | . . . . . . Fabricators . | . . . . . . Repair Stations . | . . . . . . Recycling Units . | . . . . . . Scanalyzers . | . . . . . . Garrison Access . | . . . . . . Data Cores Recovered . | . . . . . . Used . | . . . . . . Hacking Detections 1 | . . 1 . . . Full Trace Events . | . . . . . . Feedback Events . | . . . . . . Feedback Blocked . | . . . . . . Robot Schematics Acquired . | . . . . . . Robots Built . | . . . . . . Authchips . | . . . . . . Time . | . . . . . . Total Robot Build Rating . | . . . . . . Part Schematics Acquired . | . . . . . . Parts Built . | . . . . . . Authchips . | . . . . . . Time . | . . . . . . Total Part Build Rating . | . . . . . . Parts Repaired . | . . . . . . Time . | . . . . . . Parts Recycled . | . . . . . . Recycled Matter . | . . . . . . Retrieved Matter . | . . . . . . Retrieved Components . | . . . . . . Parts Scanalyzed . | . . . . . . Part Schematics Acquired . | . . . . . . Parts Damaged . | . . . . . . Bothacking | -11 -10 -9 -9 -7 -7 ------------ Run | Yrd Mat Mat Min Zio Dee Used RIF Installer . | . . . . . . Robots Hacked . | . . . . . . Non-combat . | . . . . . . Combat . | . . . . . . Robot Hacks Applied . | . . . . . . Relay Couplers Released . | . . . . . . Fabnet Peak Effective % . | . . . . . . Robots Rewired . | . . . . . . Allies Hacked . | . . . . . . Hacks Repelled . | . . . . . . Allies | -11 -10 -9 -9 -7 -7 -------- Run | Yrd Mat Mat Min Zio Dee Total Allies 10 | . . . 1 9 . Largest Group 9 | . . . 1 9 5 Highest-Rated Group 436 | . . . 31 436 279 Highest-Rated Ally 96 | . . . 31 96 96 Total Orders . | . . . . . . Ally Attacks 25 | . . . . . 25 Total Damage 396 | . . . . . 396 Kills 4 | . . . . . 4 Allies Corrupted . | . . . . . . Allies Melted . | . . . . . . Intel | -11 -10 -9 -9 -7 -7 ------- Run | Yrd Mat Mat Min Zio Dee Robot Analysis Total . | . . . . . . Derelict Logs Recovered 3 | . . . 1 2 . Drone Launches . | . . . . . . Drone Recoveries . | . . . . . . Exploration | -11 -10 -9 -9 -7 -7 ------------- Run | Yrd Mat Mat Min Zio Dee Turns Passed 2845 | 118 886 492 384 825 140 Spaces Moved 3413 | 85 554 306 597 1656 215 Core 55 | 21 . 9 . . 25 Treads . | . . . . . . Legs 701 | 64 509 128 . . . Wheels 218 | . 35 169 14 . . Hover 12 | . . . . . 12 Flight 2427 | . 10 . 583 1656 178 Fastest Speed 37 | 50 80 90 37 37 37 Average Speed 63 | 102 120 128 46 38 46 Slowest Speed 350 | 120 290 350 117 117 150 Overloaded Moves . | . . . . . . Propulsion Burnouts . | . . . . . . Robots Hopped 6 | . . . 6 . . Cave-ins Triggered . | . . . . . . Exploration Rate (%) 53 | 5 62 33 96 92 31 Regions Visited 5 Branch Regions 3 Pre-discovered Areas 2 | . . . . 2 . Known Exits Taken 1 | . . 1 . . . Unknown Exits Taken 4 | 1 1 . 1 1 . Scrap Searched 3 | . . . 1 2 . Spaces Dug . | . . . . . . Terrain Destroyed 188 | . 77 35 76 . . Melee . | . . . . . . Projectile . | . . . . . . AOE 188 | . 77 35 76 . . Terrain Rammed . | . . . . . . Walls Destroyed . | . . . . . . Machines Disabled . | . . . . . . Actions | -11 -10 -9 -9 -7 -7 --------- Run | Yrd Mat Mat Min Zio Dee Total 3938 | 114 677 351 692 1851 253 Wait 278 | 14 2 . 66 169 27 Move 3397 | 84 553 305 585 1655 215 Hop 5 | . . . 5 . . Pick Up 60 | 10 24 8 7 8 3 Fast Attach . | . . . . . . Attach 39 | 5 12 7 6 6 3 Detach 9 | . . . 4 5 . Swap 16 | . 10 2 3 1 . Drop 32 | . 13 1 9 7 2 Fire 101 | 1 62 28 7 . 3 Melee . | . . . . . . Ram . | . . . . . . Kick 1 | . 1 . . . . Crush . | . . . . . . Escape Stasis . | . . . . . . Rewire . | . . . . . . Trap . | . . . . . . Miscellaneous . | . . . . . . Route ------- -11/Scrapyard -10/Materials (discovered 2 exits: *Mat / [*Min]) -9/Materials (discovered 2 exits: *Min / Sto) -9/Mines (discovered 3 exits: [*Mat x2] / *Zio) -7/Zion (discovered 2 exits: [*Dee] / [*Pro]) -7/Deep Caves History --------- Turn | Location | Event 2 | -11/Scrapyard | Met Revision 17 76 | -11/Scrapyard | Discovered new exit (range 8) 119 | -11/Scrapyard | Entered Materials 301 | -10/Materials | Build established: Mutant 358 | -10/Materials | Lost 3 parts (1p1n1w) 418 | -10/Materials | Discovered new exit (range 13) 636 | -10/Materials | Core integrity fell below 50% 668 | -10/Materials | Lost 3 parts (1n2w) 974 | -10/Materials | Discovered new exit (range 16) 1005 | -10/Materials | Entered another Materials area 1005 | -9/Materials | Evolved 2 slots: Utility x2 1311 | -9/Materials | Lost 4 parts (1p1n1u1w) 1417 | -9/Materials | Identified exit to Mines 1417 | -9/Materials | Identified exit to Storage 1497 | -9/Materials | Entered Mines 1613 | -9/Mines | A Derelict revealed a hidden shortcut to a safe place 1635 | -9/Mines | Discovered new exit (range 10) 1652 | -9/Mines | Discovered new exit (range 5) 1710 | -9/Mines | A weapon hastily lodged in a ceiling crevice suddenly fell to the ground 1736 | -9/Mines | Learned location of 1 exit from Materials 1781 | -9/Mines | Received a Mining Laser from a helpful Derelict 1881 | -9/Mines | Entered Zion 1881 | -7/Zion | Accompanied by 1 ally 1972 | -7/Zion | Learned Factory interactive machine intel 2015 | -7/Zion | Given the Hacking Drone Bay 2017 | -7/Zion | Found Prototype Device 2049 | -7/Zion | Met Imprinter 2057 | -7/Zion | Imprinted 2059 | -7/Zion | Declared Zion's savior 2102 | -7/Zion | Received a hallucinogenic algorithm 2143 | -7/Zion | Learned location of Data Miner (-6) 2183 | -7/Zion | Gained Derelict followers 2207 | -7/Zion | Given A8's code to call for help 2342 | -7/Zion | Acquired unknown access codes intercepted by a Zionite 2343 | -7/Zion | Discovered new exit (range 8) 2422 | -7/Zion | Enhanced Grunt warped into view, answering call for help 2423 | -7/Zion | Enhanced Grunt warped into view, answering call for help 2424 | -7/Zion | Build established: Hacker-Mutant 2478 | -7/Zion | Opened final containment barrier to the Deep Caves 2486 | -7/Zion | Discovered new exit (range 3) 2486 | -7/Zion | Saw the warning signs outside the Deep Caves entrance 2706 | -7/Zion | Entered Deep Caves 2706 | -7/Deep Caves | Accompanied by 9 allies 2800 | -7/Deep Caves | Z-Facility disabled 2807 | -7/Deep Caves | Core integrity fell below 50% 2811 | -7/Deep Caves | Core integrity fell below 20% 2838 | -7/Deep Caves | Lost 3 parts (2n1w) 2844 | -7/Deep Caves | Attacked by Z-Imprinter 2846 | -7/Deep Caves | Destroyed by TC-4C7(z) with Zionite Laser-S Last Messages --------------- EF-KWB(M) slips into the shadows. NEW_ZION: Z-Facility proximity alert. Flight Unit destroyed. Z-Facility disabled. Grenade Launcher destroyed. Flight Unit destroyed. Dropped Backup Laser III. Dropped Structural Scanner. 75-WHR(z) shuts down. Enhanced Grunt heat short circuits Adv. Particle Charger. Enhanced Grunt destroyed. Acquired Hover Unit. Acquired 11 matter. Acquired Datajack. Hover Unit destroyed. Z-Imprinter: GET AWAY FROM HERE! I've worked too hard for our future just to have you ruin everything! Acquired 10 matter. Map ----- +----------------------------------------------------+ | ????## ### ##########???########? | | ????## ### ###### ###?########### | | ??### ## ## # ####### ### | | ## ##### ## | | ## | | ! ## | | [ ### | | ### | | " " """"""| ### | | """""""""""" %= ## | | """"""""""""""!| | | """"""""""""" %! | | """"""""""" = | | ?""""""""""""" z I | | ??????"""""""" ## | | ??????""""""""" ### | | ??????""""""""""zz !%= ### | | ????????""""" "=" ### | | ?? ? ?????????""""""% z ## | | ??????????????"""""!= ## | | ??????????????"""""" ## | | ??????????????"""""" ### | | ??????????????"""""""" / ### | | ??????????????""""""""" #? | | ??????????????""" = #? | | ??????????????""" """ @ ##? | | ??????????????""" """"" ###? | | ??????????????""" """"""" ???? ##?? | | ???????????????"" """"""" ?????????? | | ???????????????"" ??""""" ?????????? | | ????????????????"???"""" ??????????? | | ??????????????????????" ??????????? | | ??????????????????????? ??????????? | | ???????????????????????"o ???????????? | | ??????????????????????? ???????????? | | ??????????????????????? ????????????? | | ??????????????????????? ????????????? | | ??????????????????????? ??????????????? | | ??????????????????????? ????????????????? | | ???????????????????????? ???????????????????? | | ???????????????????????? ?????????????????????? | | ?????????????????????????????????????????????????? | | ?????????????????????????????????????????????????? | | ?????????????????????????????????????????????????? | | ?????????????????????????????????????????????????? | | ?????????????????????????????????????????????????? | | ?????????????????????????????????????????????????? | | | | | | | +----------------------------------------------------+ Best States ------------- Heat Dissipation 28 Energy Generation 12 Energy Capacity 265 Matter Stores 300 Matter Capacity 300 Sight Range 16 Terrain Scan Density 10 Armor Coverage 150 Evasion (%) 62 Offensive Hacking 10 Defensive Hacking 10 Item Schematics ----------------- None Robot Schematics ------------------ None Fabricated ------------ Nothing Alien Tech Used ----------------- None Achievements -------------- Adventurer Help From High Places Let's See Who's Tougher Robot Respite Signs Are For Wimps Storm Trooper The More The Merrier The One Tourist Challenges ------------ None Game ------ Seed HardenedTargetingCore Manual? 0 Play Time 00:59:12 Cumulative 1.2 hours Start 2024.12.26 @ 06:13:09 End 2024.12.30 @ 22:16:25 Sessions 5 Manual Loads 0 Difficulty Rogue Special Mode None Game No. 3 Rogue 3 Adventurer 0 Explorer 0 Win Type - Total 0 Types 0/0/0/0/0/0/0/0/0 Lore% 2 Gallery% 3 Achievement% 5 Wizard Run 0 Options --------- Layout 1 ASCII 0 Keyboard 0 Movement Numpad Keybinds 0 Fullscreen 1 Font 24/X11 Map View 50x35 Zoom Use 0% Tactical HUD 0 Map Filters NONE Filters NONE Steam 1 RUN: b48e5c67-2ccc-40d9-8d6a-0eecb67dbbad